lending/lending_fUSD_20250122
["ID","MTS","AMOUNT","RATE_DAILY","PERIOD"]
[349993282,1737555050203,-500.0,0.00021343,2]
[349993283,1737555050212,-637.67,0.00021343,2]
[349993284,1737555050222,-500.0,0.00021343,2]
[349993285,1737555050231,-500.0,0.00021343,2]
[349993286,1737555050240,-500.0,0.00021343,2]
[349993287,1737555050250,-500.0,0.00021343,2]
[349993288,1737555050259,-599.52,0.00021343,2]
[349993289,1737555050270,-500.0,0.00021343,2]
[349993290,1737555050279,-571.65,0.00021343,2]
[349993291,1737555050288,-500.0,0.00021343,2]
[349993292,1737555050298,-500.0,0.00021343,2]
[349993293,1737555050307,-500.0,0.00021343,2]
[349993294,1737555050316,-500.0,0.00021343,2]
[349993295,1737555050325,-500.0,0.00021343,2]
[349993296,1737555050335,-500.0,0.00021343,2]
[349993297,1737555050345,-500.0,0.00021344,2]
[349993298,1737555050354,-500.0,0.00021344,2]
[349993299,1737555050364,-500.0,0.00021344,2]
[349993300,1737555050373,-500.0,0.00021344,2]
[349993301,1737555050383,-500.0,0.00021344,2]
[349993302,1737555050392,-500.0,0.00021344,2]
[349993303,1737555050403,-500.0,0.00021344,2]
[349993304,1737555050412,-500.0,0.00021344,2]
[349993305,1737555050421,-500.0,0.00021344,2]
[349993306,1737555050432,-500.0,0.00021344,2]
[349993307,1737555050442,-500.0,0.00021344,2]
[349993308,1737555050452,-542.84,0.00021344,2]
[349993309,1737555050462,-588.98795338,0.00021344,2]
[349993310,1737555050473,-518.66,0.00021344,2]
[349993311,1737555050482,-500.0,0.00021344,2]
[349993312,1737555050491,-500.0,0.00021344,2]
[349993313,1737555050502,-414.56392503,0.00021344,2]
[349993314,1737555050512,-342.78793434,0.00021344,2]
[349993315,1737555050521,-500.0,0.00021344,2]
[349993316,1737555050531,-500.0,0.00021344,2]
[349993317,1737555050541,-500.0,0.00021344,2]
[349993318,1737555050557,-500.0,0.00021344,2]
[349993319,1737555050566,-500.0,0.00021344,2]
[349993320,1737555050575,-621.35795537,0.00021373,2]
[349993321,1737555050585,-500.0,0.00021373,2]
[349993322,1737555050595,-500.0,0.00021373,2]
[349993323,1737555050605,-1696.80971404,0.00021384,2]
[349993324,1737555050614,-328.40538943,0.00021386,2]
[349993325,1737555050624,-200.0,0.00021393,2]
[349993326,1737555050633,-521.066895,0.00021397,2]
[349993327,1737555050643,-150.0,0.00021397,4]
[349993328,1737555050653,-150.0,0.00021397,4]
[349993329,1737555050662,-2755.82580949,0.000214,2]
[349993330,1737555050671,-1000000.0,0.000214,2]
[349993331,1737555050680,-240884.01923156,0.000214,2]
[349993332,1737555051054,-500.0,0.00021243,2]
[349993333,1737555051067,-504.21944738,0.000214,2]
[349993334,1737555051084,-64953.24691552,0.000214,2]
[349993335,1737555051098,-16145.9597528,0.000214,2]
[349993336,1737555051302,-500.0,0.00020969,2]
[349993337,1737555051314,-208.1049956,0.00020969,2]
[349993338,1737555051338,-291.8950044,0.00020969,2]
[349993339,1737555051350,-500.0,0.00020969,2]
[349993340,1737555051362,-510.85801564,0.00021243,2]
[349993341,1737555051373,-500.0,0.00021243,2]
[349993342,1737555051385,-7739.13987335,0.000214,2]
[349993343,1737555051399,-3461.44359667,0.000214,2]
[349993344,1737555051439,-343.48470714,0.000214,2]
[349993345,1737555051453,-316.66,0.000214,2]
[349993346,1737555051485,-1022.67402567,0.000214,2]
[349993347,1737555051839,-4381.25527597,0.000214,2]
[349993348,1737555052020,-77.0561086,0.00020896,2]
[349993349,1737555052038,-422.9438914,0.00020896,2]
[349993350,1737555052049,-500.0,0.00020969,2]
[349993351,1737555052058,-278.31985309,0.0002117,2]
[349993352,1737555052070,-221.68014691,0.0002117,2]
[349993353,1737555052080,-500.0,0.00021243,2]
[349993354,1737555052089,-1521.38283458,0.000214,2]
[349993355,1737555052100,-1642.57414379,0.000214,2]
[349993356,1737555052443,-468376.13489933,0.000214,2]
[349993357,1737555052465,-12674.517128,0.000214,2]
[349993358,1737555052482,-591.888,0.000214,2]
[349993359,1737555052495,-623.28783581,0.000214,2]
[349993360,1737555052687,-150.0,0.00020356,2]
[349993361,1737555052698,-526.54141053,0.00020777,2]
[349993362,1737555052718,-512.22749661,0.00020795,2]
[349993363,1737555052736,-500.0,0.00020896,2]
[349993364,1737555052746,-500.0,0.00020896,2]
[349993365,1737555052756,-155.931051,0.00020968,2]
[349993366,1737555052768,-500.0,0.00020969,2]
[349993367,1737555052777,-1000.0,0.0002097,2]
[349993368,1737555052787,-500.0,0.0002117,2]
[349993369,1737555052797,-500.0,0.0002117,2]
[349993370,1737555052808,-500.0,0.00021243,2]
[349993371,1737555052820,-174818.11233243,0.000214,2]
[349993372,1737555052830,-492457.9042208,0.000214,2]
[349993373,1737555052841,-39074.999998,0.000214,2]
[349993374,1737555052956,-1588.90507,0.000214,2]
[349993375,1737555052969,-1366.306158,0.000214,2]
[349993376,1737555053105,-4023.53844235,0.000214,2]
[349993377,1737555053116,-9069.47761382,0.000214,2]
[349993378,1737555053128,-9387.38766099,0.000214,2]
[349993379,1737555053139,-106600.0,0.000214,2]
[349993380,1737555053159,-9695.11360184,0.000214,2]
[349993381,1737555053407,-500.0,0.00020896,2]
[349993382,1737555053417,-500.0,0.00020896,2]
[349993383,1737555053426,-500.0,0.00020896,2]
[349993384,1737555053435,-172.245636,0.00020909,2]
[349993385,1737555053445,-500.0,0.00020969,2]
[349993386,1737555053454,-500.0,0.00020969,2]
[349993387,1737555053464,-155.73689277,0.00020969,2]
[349993388,1737555053477,-323.31,0.00020969,2]
[349993391,1737555193960,2000.0,0.00024,120]
[349993392,1737555204120,200.0,0.00024,120]
[349993397,1737555406208,26787.13280024,0.00018,3]
[349993400,1737555455095,100653.62224958,0.00012,2]
[349993404,1737555794465,702.652294,0.00024,120]
[349993405,1737555803490,202.180823,0.00024,120]
[349993406,1737555850355,156.4,0.00010137,2]
[349993408,1737555908605,2059350.48383793,0.00012,2]
[349993409,1737555925884,770.47114531,0.000108,2]
[349993410,1737555929932,33366.50380808,0.00011,2]
[349993414,1737556078405,1626.77099362,0.0001,2]
[349993415,1737556082115,927405.01983838,0.0001,2]
[349993420,1737556123247,256.78256605,0.000107,2]
[349993425,1737556165122,-498.76810641,0.00013,5]
[349993426,1737556165143,-1758.95820691,0.0001439,2]
[349993427,1737556165162,-288.482785,0.00017834,2]
[349993428,1737556186568,738.5,0.00017526,2]
[349993429,1737556194282,250.0,0.00017177,2]
[349993440,1737556232288,-500.0,0.00018548,2]
[349993441,1737556232298,-1033.5011175,0.00019,2]
[349993442,1737556232311,-12203.20198882,0.00019,2]
[349993443,1737556232320,-3624.45984468,0.00019,2]
[349993444,1737556232331,-3717.72104223,0.00019,2]
[349993445,1737556232341,-250.0,0.00019488,2]
[349993446,1737556232352,-261.72,0.00019524,2]
[349993447,1737556232364,-184.35,0.00019532,2]
[349993448,1737556232374,-250.0,0.00019549,2]
[349993449,1737556232383,-537.29422997,0.00019611,2]
[349993450,1737556232396,-462.70577003,0.00019611,2]
[349993451,1737556232405,-250.0,0.00019624,2]
[349993452,1737556232415,-1000.0,0.00019655,2]
[349993453,1737556232424,-17377.29531988,0.00019656,2]
[349993454,1737556232523,-6522.70468012,0.00019656,2]
[349993455,1737556232534,-5033.31549609,0.00019678,2]
[349993456,1737556232616,-875.90010038,0.00019678,2]
[349993457,1737556232635,-639.32704388,0.00019678,2]
[349993911,1737556238328,-4298.12788091,0.00019678,2]
[349993913,1737556238338,-170.92,0.00019723,2]
[349993915,1737556238349,-155.24,0.0001973,30]
[349993917,1737556238362,-375.91,0.00019735,2]
[349993919,1737556238371,-960.69,0.00019744,2]
[349993921,1737556238381,-738.5,0.0001979,2]
[349993923,1737556238391,-173.68,0.00019856,2]
[349993925,1737556238402,-10590.3973976,0.000199,5]
[349993927,1737556238412,-1814.97716013,0.000199,7]
[349993929,1737556238421,-419.6,0.00019904,2]
[349993931,1737556238431,-256.27610625,0.00020039,2]
[349993935,1737556238463,-2243.72389375,0.00020039,2]
[349993937,1737556238472,-171.65,0.00020116,2]
[349993939,1737556238482,-5000.0,0.00020216,2]
[349993941,1737556238491,-2500.0,0.00020271,2]
[349993943,1737556238500,-1207.711,0.00020285,2]
[349993945,1737556238510,-1500.0,0.000204,7]
[349993947,1737556238519,-3000.0,0.000205,7]
[349993949,1737556238528,-4600.0,0.000206,7]
[349993951,1737556238537,-2500.0,0.00020693,2]
[349993953,1737556238547,-6100.0,0.000207,7]
[349993955,1737556238557,-252.13,0.0002074,2]
[349993957,1737556238567,-500.0,0.0002074,2]
[349993959,1737556238577,-9906.97505161,0.00020789,2]
[349993961,1737556238586,-669.5971,0.00020796,2]
[349993963,1737556238595,-221.14452575,0.00020799,2]
[349993965,1737556238605,-7700.0,0.000208,7]
[349993967,1737556238614,-804.38661588,0.00020801,2]
[349993969,1737556238623,-9906.97505161,0.0002081,2]
[349993971,1737556238632,-2500.0,0.00020822,2]
[349993973,1737556238641,-2500.0,0.00020827,2]
[349993975,1737556238650,-861.29055554,0.0002083,2]
[349993977,1737556238659,-861.29055554,0.00020831,2]
[349993979,1737556238668,-221.14452575,0.00020834,2]
[349993981,1737556238678,-804.38661588,0.00020834,2]
[349993983,1737556238689,-2610.05429082,0.00020834,2]
[349993985,1737556238698,-3000.0,0.00020836,2]
[349993987,1737556238708,-2610.05429082,0.00020842,2]
[349993989,1737556238717,-2610.05429082,0.00020844,2]
[349993991,1737556238726,-221.14452575,0.00020845,2]
[349993993,1737556238736,-9906.97505161,0.00020855,2]
[349993995,1737556238745,-861.29055554,0.00020855,2]
[349993997,1737556238754,-9906.97505161,0.00020858,2]
[349993999,1737556238763,-2610.05429082,0.00020861,2]
[349994001,1737556238772,-804.38661588,0.00020864,2]
[349994003,1737556238781,-6648.8777,0.00020868,2]
[349994005,1737556238794,-1000.0,0.00020868,2]
[349994007,1737556238804,-306.8731571,0.00020868,2]
[349994009,1737556238813,-801.71541737,0.00020868,2]
[349994011,1737556238822,-518.7289,0.00020869,2]
[349994013,1737556238832,-861.29055554,0.00020877,2]
[349994015,1737556238842,-3000.0,0.00020877,2]
[349994017,1737556238851,-221.14452575,0.00020879,2]
[349994019,1737556238861,-3000.0,0.00020889,2]
[349994021,1737556238870,-182.54,0.0002089,2]
[349994023,1737556238879,-192.84732433,0.00020896,2]
[349994025,1737556238889,-500.0,0.00020896,2]
[349994027,1737556238898,-500.0,0.00020896,2]
[349994029,1737556238909,-500.0,0.00020896,2]
[349994031,1737556238918,-500.0,0.00020896,2]
[349994033,1737556238927,-500.0,0.00020896,2]
[349994035,1737556238937,-500.0,0.00020896,2]
[349994037,1737556238947,-500.0,0.00020896,2]
[349994039,1737556238957,-373.22000153,0.00020896,2]
[349994041,1737556238966,-500.0,0.00020896,2]
[349994043,1737556238975,-500.0,0.00020896,2]
[349994045,1737556238984,-500.0,0.00020896,2]
[349994047,1737556238994,-500.0,0.00020896,2]
[349994049,1737556239003,-500.0,0.00020896,2]
[349994051,1737556239012,-500.0,0.00020896,2]
[349994053,1737556239022,-500.0,0.00020896,2]
[349994055,1737556239031,-500.0,0.00020896,2]
[349994057,1737556239041,-500.0,0.00020896,2]
[349994059,1737556239052,-500.0,0.00020896,2]
[349994061,1737556239062,-500.0,0.00020896,2]
[349994063,1737556239071,-500.0,0.00020896,2]
[349994065,1737556239081,-500.0,0.00020896,2]
[349994067,1737556239090,-500.0,0.00020896,2]
[349994069,1737556239100,-500.0,0.00020896,2]
[349994071,1737556239110,-500.0,0.00020896,2]
[349994073,1737556239120,-500.0,0.00020896,2]
[349994075,1737556239129,-500.0,0.00020896,2]
[349994077,1737556239138,-500.0,0.00020896,2]
[349994079,1737556239148,-613.99,0.00020896,2]
[349994081,1737556239158,-223.83576901,0.00020896,2]
[349994083,1737556239167,-500.0,0.00020896,2]
[349994085,1737556239177,-500.0,0.00020896,2]
[349994088,1737556239186,-500.0,0.00020896,2]
[349994090,1737556239200,-273.42412342,0.00020896,2]
[349994092,1737556239209,-500.0,0.00020896,2]
[349994094,1737556239219,-500.0,0.00020896,2]
[349994096,1737556239229,-500.0,0.00020896,2]
[349994097,1737556239239,-500.0,0.00020896,2]
[349994098,1737556239248,-500.0,0.00020896,2]
[349994099,1737556239258,-500.0,0.00020896,2]
[349994100,1737556239267,-500.0,0.00020896,2]
[349994101,1737556239276,-500.0,0.00020896,2]
[349994102,1737556239286,-500.0,0.00020896,2]
[349994103,1737556239295,-500.0,0.00020896,2]
[349994104,1737556239305,-500.0,0.00020896,2]
[349994106,1737556239314,-500.0,0.00020896,2]
[349994108,1737556239324,-500.0,0.00020896,2]
[349994110,1737556239333,-500.0,0.00020896,2]
[349994112,1737556239345,-500.0,0.00020896,2]
[349994114,1737556239355,-500.0,0.00020896,2]
[349994116,1737556239365,-500.0,0.00020896,2]
[349994118,1737556239374,-500.0,0.00020896,2]
[349994120,1737556239384,-500.0,0.00020896,2]
[349994122,1737556239395,-609.82424412,0.00020896,2]
[349994124,1737556239404,-500.0,0.00020896,2]
[349994126,1737556239413,-500.0,0.00020896,2]
[349994128,1737556239423,-648.49,0.00020896,2]
[349994130,1737556239435,-516.76,0.00020896,2]
[349994132,1737556239451,-500.0,0.00020896,2]
[349994134,1737556239461,-500.0,0.00020896,2]
[349994135,1737556239471,-500.0,0.00020896,2]
[349994138,1737556239481,-500.0,0.00020896,2]
[349994140,1737556239491,-500.0,0.00020896,2]
[349994142,1737556239501,-500.0,0.00020896,2]
[349994144,1737556239511,-500.0,0.00020896,2]
[349994146,1737556239520,-500.0,0.00020896,2]
[349994148,1737556239530,-676.89,0.00020896,2]
[349994150,1737556239539,-500.0,0.00020896,2]
[349994151,1737556239549,-500.0,0.00020896,2]
[349994153,1737556239559,-500.0,0.00020896,2]
[349994155,1737556239568,-694.73,0.00020896,2]
[349994157,1737556239578,-500.0,0.00020896,2]
[349994159,1737556239587,-375.9457166,0.00020896,2]
[349994161,1737556239596,-500.0,0.00020896,2]
[349994163,1737556239606,-533.87443819,0.00020896,2]
[349994165,1737556239615,-500.0,0.00020896,2]
[349994167,1737556239625,-500.0,0.00020896,2]
[349994169,1737556239634,-500.0,0.00020896,2]
[349994171,1737556239643,-500.0,0.00020896,2]
[349994173,1737556239652,-500.0,0.00020896,2]
[349994175,1737556239662,-500.0,0.00020896,2]
[349994177,1737556239671,-500.0,0.00020896,2]
[349994179,1737556239681,-500.0,0.00020896,2]
[349994181,1737556239694,-500.0,0.00020896,2]
[349994183,1737556239703,-500.0,0.00020896,2]
[349994185,1737556239712,-500.0,0.00020896,2]
[349994187,1737556239722,-500.0,0.00020896,2]
[349994189,1737556239732,-500.0,0.00020896,2]
[349994191,1737556239741,-500.0,0.00020896,2]
[349994193,1737556239751,-500.0,0.00020896,2]
[349994195,1737556239761,-500.0,0.00020896,2]
[349994197,1737556239770,-500.0,0.00020896,2]
[349994199,1737556239780,-548.04,0.00020896,2]
[349994201,1737556239790,-500.0,0.00020896,2]
[349994203,1737556239799,-500.0,0.00020896,2]
[349994205,1737556239808,-500.0,0.00020896,2]
[349994207,1737556239818,-500.0,0.00020896,2]
[349994209,1737556239827,-500.0,0.00020896,2]
[349994211,1737556239837,-500.0,0.00020896,2]
[349994213,1737556239846,-500.0,0.00020899,2]
[349994215,1737556239856,-1833.5,0.00020899,2]
[349994217,1737556239865,-1622.42,0.00020899,2]
[349994219,1737556239874,-1150.88,0.00020899,2]
[349994221,1737556239884,-401.3689945,0.00020899,2]
[349994223,1737556239893,-95.80556742,0.00020899,2]
[349994226,1737556239907,-685.06443258,0.00020899,2]
[349994228,1737556239918,-1768.2,0.00020899,2]
[349994230,1737556239927,-500.0,0.00020899,2]
[349994232,1737556239937,-616.11,0.00020899,2]
[349994234,1737556239949,-500.0,0.00020899,2]
[349994256,1737556240145,-500.0,0.00020899,2]
[349994258,1737556240155,-500.0,0.00020899,2]
[349994260,1737556240165,-500.0,0.00020899,2]
[349994262,1737556240174,-500.0,0.00020899,2]
[349994264,1737556240184,-500.0,0.00020899,2]
[349994266,1737556240198,-500.0,0.00020899,2]
[349994269,1737556240207,-1068.56,0.00020899,2]
[349994272,1737556240217,-500.0,0.00020899,2]
[349994274,1737556240226,-500.0,0.00020899,2]
[349994276,1737556240235,-500.0,0.00020899,2]
[349994278,1737556240245,-246.29442325,0.00020899,2]
[349994280,1737556240254,-500.0,0.00020899,2]
[349994282,1737556240263,-500.0,0.00020899,2]
[349994284,1737556240272,-500.0,0.00020899,2]
[349994286,1737556240281,-500.0,0.00020899,2]
[349994288,1737556240290,-500.0,0.00020899,2]
[349994290,1737556240300,-500.0,0.00020899,2]
[349994292,1737556240309,-500.0,0.00020899,2]
[349994294,1737556240319,-500.0,0.00020899,2]
[349994296,1737556240332,-500.0,0.00020899,2]
[349994298,1737556240341,-500.0,0.00020899,2]
[349994300,1737556240352,-500.0,0.00020899,2]
[349994302,1737556240363,-500.0,0.00020899,2]
[349994304,1737556240372,-500.0,0.00020899,2]
[349994306,1737556240381,-500.0,0.00020899,2]
[349994308,1737556240392,-14533.02959429,0.000209,2]
[349994312,1737556240421,-427.89982577,0.000209,2]
[349994327,1737556240598,-621.56,0.00020899,2]
[349994328,1737556240608,-500.0,0.00020899,2]
[349994329,1737556240617,-19.90609013,0.000209,2]
[349994330,1737556240629,-1039.7737196,0.000209,2]
[349994331,1737556240644,-963.19752,0.000209,2]
[349994332,1737556240671,-400.67945547,0.000209,2]
[349994497,1737556243249,-348.61588,0.00020899,2]
[349994498,1737556243338,-151.38412,0.00020899,2]
[349994499,1737556243353,-7969.61588,0.000209,2]
[349994500,1737556243490,-383.22056369,0.00020899,2]
[349994501,1737556243500,-69744.64084078,0.000209,2]
[349994502,1737556243510,-1500.0,0.000209,7]
[349994503,1737556243520,-206.282128,0.000209,2]
[349994504,1737556243531,-3000.0,0.00020906,2]
[349994505,1737556243541,-804.38661588,0.00020909,2]
[349994506,1737556243551,-801.71541729,0.00020916,2]
[349994507,1737556243561,-2999.98,0.00020916,2]
[349994508,1737556243570,-804.38661588,0.00020917,2]
[349994509,1737556243580,-1347.95,0.00020924,2]
[349994510,1737556243589,-861.29055554,0.00020928,2]
[349994511,1737556243599,-9906.97505161,0.00020935,2]
[349994512,1737556243609,-206.28212796,0.00020936,2]
[349994513,1737556243619,-2610.05429082,0.00020938,2]
[349994514,1737556243629,-221.14452575,0.0002094,2]
[349994515,1737556243639,-801.71541729,0.00020964,2]
[349994516,1737556243648,-882.16,0.00020967,2]
[349994517,1737556243658,-525.67,0.00020967,2]
[349994518,1737556243667,-569.31,0.00020967,2]
[349994519,1737556243677,-1101.22,0.00020967,2]
[349994520,1737556243687,-500.0,0.00020967,2]
[349994521,1737556243699,-1257.79,0.00020967,2]
[349994522,1737556243708,-500.0,0.00020967,2]
[349994523,1737556243718,-875.17,0.00020967,2]
[349994524,1737556243728,-1450.73,0.00020967,2]
[349994525,1737556243738,-890.75,0.00020967,2]
[349994526,1737556243748,-842.73,0.00020967,2]
[349994527,1737556243757,-2532.31,0.00020967,2]
[349994528,1737556243767,-560.3,0.00020967,2]
[349994529,1737556243776,-500.0,0.00020967,2]
[349994530,1737556243785,-500.0,0.00020967,2]
[349994531,1737556243794,-3184.86,0.00020967,2]
[349994532,1737556243804,-566.26,0.00020967,2]
[349994533,1737556243815,-559.21,0.00020968,2]
[349994534,1737556243824,-500.0,0.00020968,2]
[349994535,1737556243834,-500.0,0.00020968,2]
[349994536,1737556243843,-539.02,0.00020968,2]
[349994537,1737556243852,-502.45361303,0.00020968,2]
[349994539,1737556243862,-500.0,0.00020968,2]
[349994540,1737556243871,-500.0,0.00020968,2]
[349994542,1737556243881,-500.0,0.00020968,2]
[349994544,1737556243891,-500.0,0.00020968,2]
[349994546,1737556243900,-500.0,0.00020968,2]
[349994548,1737556243910,-500.0,0.00020968,2]
[349994550,1737556243920,-500.0,0.00020968,2]
[349994552,1737556243929,-500.0,0.00020968,2]
[349994554,1737556243939,-612.09,0.00020968,2]
[349994556,1737556243950,-500.0,0.00020968,2]
[349994558,1737556243960,-500.0,0.00020968,2]
[349994560,1737556243969,-500.0,0.00020968,2]
[349994562,1737556243978,-500.0,0.00020968,2]
[349994564,1737556243988,-764.3,0.00020968,2]
[349994566,1737556243997,-622.75,0.00020968,2]
[349994568,1737556244006,-500.0,0.00020968,2]
[349994570,1737556244016,-500.0,0.00020968,2]
[349994572,1737556244025,-500.0,0.00020968,2]
[349994574,1737556244034,-500.0,0.00020968,2]
[349994576,1737556244044,-500.0,0.00020968,2]
[349994578,1737556244053,-500.0,0.00020968,2]
[349994580,1737556244063,-534.34826693,0.00020968,2]
[349994582,1737556244073,-500.0,0.00020968,2]
[349994584,1737556244082,-500.0,0.00020968,2]
[349994586,1737556244091,-500.0,0.00020968,2]
[349994588,1737556244100,-500.0,0.00020968,2]
[349994590,1737556244110,-500.0,0.00020968,2]
[349994592,1737556244120,-500.0,0.00020968,2]
[349994594,1737556244131,-500.0,0.00020968,2]
[349994596,1737556244141,-500.0,0.00020968,2]
[349994598,1737556244150,-503.70165412,0.00020968,2]
[349994600,1737556244160,-552.36,0.00020968,2]
[349994602,1737556244170,-500.0,0.00020968,2]
[349994604,1737556244179,-500.0,0.00020968,2]
[349994605,1737556244188,-500.0,0.00020968,2]
[349994606,1737556244201,-834.28,0.00020968,2]
[349994607,1737556244211,-855.4,0.00020968,2]
[349994608,1737556244221,-500.0,0.00020968,2]
[349994609,1737556244230,-500.0,0.00020968,2]
[349994610,1737556244240,-500.0,0.00020968,2]
[349994611,1737556244249,-926.07,0.00020968,2]
[349994612,1737556244259,-500.0,0.00020968,2]
[349994613,1737556244270,-500.0,0.00020968,2]
[349994614,1737556244280,-337.93399169,0.00020968,2]
[349994615,1737556244289,-571.53,0.00020968,2]
[349994616,1737556244299,-500.0,0.00020968,2]
[349994617,1737556244309,-500.0,0.00020968,2]
[349994618,1737556244319,-433.24878051,0.00020968,2]
[349994619,1737556244329,-500.0,0.00020968,2]
[349994620,1737556244340,-500.0,0.00020968,2]
[349994621,1737556244352,-500.0,0.00020968,2]
[349994622,1737556244370,-500.0,0.00020968,2]
[349994623,1737556244380,-500.0,0.00020968,2]
[349994624,1737556244392,-941.29,0.00020968,2]
[349994625,1737556244401,-500.0,0.00020968,2]
[349994626,1737556244412,-561.82,0.00020968,2]
[349994627,1737556244422,-500.0,0.00020968,2]
[349994628,1737556244436,-500.0,0.00020968,2]
[349994629,1737556244449,-500.0,0.00020968,2]
[349994630,1737556244459,-616.72,0.00020968,2]
[349994631,1737556244469,-739.8,0.00020968,2]
[349994632,1737556244479,-500.0,0.00020968,2]
[349994633,1737556244489,-500.0,0.00020968,2]
[349994634,1737556244498,-677.67,0.00020968,2]
[349994635,1737556244508,-500.0,0.00020968,2]
[349994636,1737556244518,-1553.94,0.00020968,2]
[349994637,1737556244527,-500.0,0.00020968,2]
[349994638,1737556244537,-500.0,0.00020968,2]
[349994639,1737556244547,-1035.36,0.00020968,2]
[349994640,1737556244556,-500.0,0.00020968,2]
[349994641,1737556244566,-500.0,0.00020968,2]
[349994642,1737556244575,-500.0,0.00020968,2]
[349994643,1737556244585,-1738.5,0.00020968,2]
[349994644,1737556244595,-500.0,0.00020968,2]
[349994645,1737556244604,-872.77,0.00020968,2]
[349994646,1737556244614,-1043.89,0.00020968,2]
[349994647,1737556244624,-500.0,0.00020968,2]
[349994648,1737556244640,-875.091133,0.00020968,2]
[349994649,1737556244660,-500.0,0.00020968,2]
[349994650,1737556244680,-500.0,0.00020968,2]
[349994651,1737556244698,-500.0,0.00020968,2]
[349994652,1737556244708,-500.0,0.00020968,2]
[349994653,1737556244718,-156.159057,0.00020968,2]
[349994654,1737556244728,-520.16,0.00020968,2]
[349994655,1737556244738,-1479.82,0.00020968,2]
[349994656,1737556244747,-669.09,0.00020968,2]
[349994657,1737556244757,-1007.57,0.00020968,2]
[349994658,1737556244767,-1003.31,0.00020968,2]
[349994659,1737556244776,-500.0,0.00020968,2]
[349994660,1737556244786,-723.13,0.00020968,2]
[349994661,1737556244797,-1517.47,0.00020968,2]
[349994662,1737556244806,-698.3,0.00020968,2]
[349994663,1737556244816,-500.0,0.00020968,2]
[349994664,1737556244826,-500.0,0.00020968,2]
[349994665,1737556244835,-500.0,0.00020968,2]
[349994666,1737556244845,-554.25,0.00020968,2]
[349994667,1737556244854,-804.83,0.00020968,2]
[349994668,1737556244864,-1462.12,0.00020968,2]
[349994669,1737556244873,-500.0,0.00020968,2]
[349994670,1737556244882,-842.35,0.00020968,2]
[349994671,1737556244891,-770.13,0.00020968,2]
[349994672,1737556244901,-1515.92,0.00020968,2]
[349994673,1737556244911,-500.0,0.00020968,2]
[349994674,1737556244922,-500.0,0.00020968,2]
[349994675,1737556244932,-1190.92,0.00020968,2]
[349994676,1737556244942,-878.0,0.00020968,2]
[349994677,1737556244953,-500.0,0.00020968,2]
[349994678,1737556244962,-2592.57,0.00020968,2]
[349994679,1737556244971,-500.0,0.00020968,2]
[349994680,1737556244980,-500.0,0.00020968,2]
[349994681,1737556244990,-689.44,0.00020968,2]
[349994682,1737556244999,-1126.88,0.00020968,2]
[349994683,1737556245009,-517.85,0.00020968,2]
[349994684,1737556245018,-595.51,0.00020968,2]
[349994685,1737556245028,-995.01,0.00020968,2]
[349994686,1737556245038,-2403.92,0.00020968,2]
[349994687,1737556245047,-520.75,0.00020968,2]
[349994688,1737556245056,-730.41,0.00020968,2]